Cogmind - Beta 10 @@@ ROGUE MODE // 2020.09.17 @ 21:26:06 Player: Delioz Result: Destroyed by Y-45 Defender with Beam Rifle Performance ------------- Evolutions (1) 500 Regions Visited (3) 600 Robots Destroyed (10) 50 Value Destroyed (228) 228 Prototype IDs (2) 40 Alien Tech Used (0) 0 Bonus (0) 0 TOTAL SCORE: 1418 Bonus ------- None Cogmind --------- Core Integrity 0/400 Matter 187/300 Energy 125/125 System Corruption 0% Temperature Cool (18) Movement Rolling (100) Ox1 Location -9/Materials Parts ------- > --- POWER (1) -------- Light Ion Engine > --- PROPULSION (3) --- Armored Wheel > --- UTILITY (3) ------ Small Storage Unit Medium Storage Unit > --- WEAPON (2) ------- (None) > --- INVENTORY (10) --- Flight Unit Transport Network Coupler Medium Laser Mace Peak State ------------ > --- POWER ------------ Ion Engine > --- PROPULSION ------- Wheel Wheel Wheel > --- UTILITY ---------- Small Storage Unit Medium Storage Unit Sensor Array > --- WEAPON ----------- Mace Mining Claw > --- INVENTORY -------- Wheel Wheel Medium Laser Rocket Launcher Rocket Launcher [Rating: 10] Favorites ----------- Power Ion Engine Engine Ion Engine Propulsion Wheel Wheel Wheel Utility Small Storage Unit Device Sensor Array Storage Small Storage Unit Weapon Assault Rifle Energy Gun Medium Laser Ballistic Gun Assault Rifle Launcher Rocket Launcher Impact Weapon Mace Slashing Weapon Mining Claw Build | -11 -10 -10 -9 ------- Run | Scr Mat Min Mat Slots Evolved 2 | . . . 2 Power . | . . . . Propulsion 1 | . . . 1 Utility 1 | . . . 1 Weapon . | . . . . Parts Attached 21 | 6 2 . 13 Power 3 | 1 . . 2 Engine 3 | 1 . . 2 Core . | . . . . Reactor . | . . . . Propulsion 7 | 2 1 . 4 Treads . | . . . . Leg . | . . . . Wheel 7 | 2 1 . 4 Hover . | . . . . Flight . | . . . . Utility 3 | 1 1 . 1 Device 1 | . 1 . . Storage 2 | 1 . . 1 Processor . | . . . . Hackware . | . . . . Protection . | . . . . Artifact . | . . . . Weapon 8 | 2 . . 6 Energy Gun 1 | . . . 1 Energy Cannon . | . . . . Ballistic Gun 2 | 2 . . . Ballistic Cannon . | . . . . Launcher 3 | . . . 3 Special Weapon . | . . . . Impact Weapon 1 | . . . 1 Slashing Weapon 1 | . . . 1 Piercing Weapon . | . . . . Special Melee Weapon . | . . . . Unidentified Prototypes . | . . . . Parts Lost 10 | . . . 10 Power 1 | . . . 1 Propulsion 5 | . . . 5 Utility 1 | . . . 1 Weapon 3 | . . . 3 Highest Loss Streak 7 | . . . 7 Average Slot Usage (%) 84 | . 91 100 79 Engine 12 | . 14 14 10 Wheel 27 | . 28 28 27 Device 7 | . 5 14 7 Storage 15 | . 14 14 16 Energy Gun 1 | . . . 3 Ballistic Gun 14 | . 28 28 4 Launcher 3 | . . . 5 Impact Weapon 1 | . . . 2 Slashing Weapon 1 | . . . 2 Naked Turns . | . . . . Heaviest Build 22 | 12 13 13 22 Greatest Support 32 | 26 26 20 32 Greatest Overweight (x) 2 | . . . 2 Average Overweight (x) . | . . . . Largest Inventory Capacity 10 | 6 6 6 10 Average Capacity 6 | 5 6 6 7 Most Carried 7 | 4 6 6 7 Average Carried 4 | 1 3 6 5 Final Capacity 10 | 6 6 6 10 Final Carried 6 | 1 6 6 4 Class Distribution -------------------- 100% | Mutant Dominant Class ---------------- Mutant | -10/Materials Mutant | -10/Mines Mutant | -9/Materials Resources | -11 -10 -10 -9 ----------- Run | Scr Mat Min Mat Matter Collected 360 | 199 39 . 122 Remotely . | . . . . Salvage Created 214 | . 39 . 175 Parts 20 | . 3 . 17 Haulers Intercepted 1 | . . . 1 Recyclers Shooed . | . . . . Parts Field Recycled . | . . . . Retrieved Matter . | . . . . Parts Self-Destructed . | . . . . Prevented . | . . . . Kills | -11 -10 -10 -9 ------- Run | Scr Mat Min Mat Combat Hostiles Destroyed 7 | . . . 7 AOE 7 | . . . 7 Classes Destroyed 5 | . 1 . 4 Tunneler 1 | . . . 1 Hauler 1 | . . . 1 Mechanic 1 | . 1 . . Swarmer 3 | . . . 3 Grunt 4 | . . . 4 Best Kill Streak 5 | . 1 . 5 Combat Bots Only 4 | . . . 4 Max Kills in Single Turn 2 | . 1 . 2 Gunslinging . | . . . . Exploded 1 | . . . 1 Melee . | . . . . Uniques/NPCs Destroyed . | . . . . Combat | -11 -10 -10 -9 -------- Run | Scr Mat Min Mat Damage Taken 1225 | . . . 1225 Core 414 | . . . 414 Absorbed by Shields . | . . . . Core Remaining (%) 100 | 100 . 100 . Volleys Fired 11 | . 2 . 9 Largest 2 | . 2 . 2 Hottest 53 | . 40 . 53 Shots Fired 15 | . 4 . 11 Gun 6 | . 4 . 2 Cannon . | . . . . Launcher 9 | . . . 9 Special . | . . . . Kinetic 6 | . 4 . 2 Thermal . | . . . . Explosive 9 | . . . 9 Electromagnetic . | . . . . Robot Hit Streak 2 | . 1 . 2 Robot Miss Streak 2 | . 2 . 2 Penetration Max . | . . . . Secondary Targets . | . . . . Shots Hit Robots 7 | . 1 . 6 Core Hits 16 | . 1 . 15 Critical Hits . | . . . . Critical Kills . | . . . . Critical Parts Destroyed . | . . . . Melee Attacks 5 | . . . 5 Impact . | . . . . Slashing 5 | . . . 5 Piercing . | . . . . Sneak Attacks 1 | . . . 1 Combat Hostiles . | . . . . Follow-up Attacks . | . . . . Damage Inflicted 780 | . 15 . 765 Guns 27 | . 15 . 12 Cannons . | . . . . Explosions 652 | . . . 652 Melee 101 | . . . 101 Ramming . | . . . . Kinetic 27 | . 15 . 12 Thermal 143 | . . . 143 Explosive 509 | . . . 509 Electromagnetic . | . . . . Impact . | . . . . Slashing 101 | . . . 101 Piercing . | . . . . Highest Corruption . | . . . . Average Corruption . | . . . . Corruption Purged . | . . . . Overload Shots . | . . . . Overflow Damage 81 | . . . 81 Projectiles . | . . . . Explosions 81 | . . . 81 Melee . | . . . . Knockbacks . | . . . . Impact . | . . . . Kinetic . | . . . . Secondary . | . . . . Self-Inflicted Damage 225 | . . . 225 Shots 6 | . . . 6 Rammed . | . . . . Targets Rammed . | . . . . Kicked . | . . . . Crushed . | . . . . Highest Temperature 13 | . . . 13 Average Temperature 6 | . . . 6 Received Heat Transfer 465 | . . . 465 Siege Activations . | . . . . Robots Corrupted . | . . . . Combat Hostiles . | . . . . Parts Fried . | . . . . Impact Corruptions . | . . . . Robots Melted . | . . . . Combat Hostiles . | . . . . Parts Melted . | . . . . Heat Transferred 100 | . . . 100 Parts Sabotaged . | . . . . Parts Stolen . | . . . . Parts Stripped . | . . . . Power Chain Reactions . | . . . . Missiles Intercepted . | . . . . Alert | -11 -10 -10 -9 ------- Run | Scr Mat Min Mat Peak Influence 187 | . 71 27 187 Initial 27 | . . 27 10 Average 51 | . 28 27 76 Maximum Alert Level . | . . . . Low Security (%) 100 | 100 100 100 100 Level 1 . | . . . . Level 2 . | . . . . Level 3 . | . . . . Level 4 . | . . . . Level 5 . | . . . . High Security . | . . . . Max Security . | . . . . Squads Dispatched . | . . . . Investigation . | . . . . Extermination . | . . . . Reinforcement . | . . . . Assault . | . . . . Garrison . | . . . . Intercept . | . . . . Construction Impeded . | . . . . Haulers Reinforced . | . . . . Stealth | -11 -10 -10 -9 --------- Run | Scr Mat Min Mat Distress Signals . | . . . . Communications Jammed . | . . . . Distress Signals . | . . . . Times Spotted 16 | . 3 . 13 Peak Tracking Total 10 | . 2 . 10 Tactical Retreats 2 | . . . 2 Traps | -11 -10 -10 -9 ------- Run | Scr Mat Min Mat Traps Triggered . | . . . . Indirectly . | . . . . Trap Hack Attempts . | . . . . Triggered . | . . . . Disarmed . | . . . . Reprogrammed . | . . . . Reused . | . . . . Traps Extracted . | . . . . Installed . | . . . . Triggered . | . . . . Machines | -11 -10 -10 -9 ---------- Run | Scr Mat Min Mat Machines Disabled 4 | . . . 4 Max in Single Turn 2 | . . . 2 Machines Sabotaged . | . . . . Garrisons Compromised . | . . . . Overloaded Fab Kills . | . . . . Fab Network Shutdowns . | . . . . Hacking | -11 -10 -10 -9 --------- Run | Scr Mat Min Mat Machines Accessed 9 | . 6 . 3 Terminals 8 | . 6 . 2 Fabricators . | . . . . Repair Stations . | . . . . Recycling Units . | . . . . Scanalyzers 1 | . . . 1 Garrison Access . | . . . . Total Hacks 25 | . 16 . 9 Successful 17 | . 11 . 6 Failed 8 | . 5 . 3 Catastrophic 1 | . . . 1 Database Lockouts . | . . . . Manual . | . . . . Terminals 21 | . 16 . 5 Fabricators . | . . . . Repair Stations . | . . . . Recycling Units . | . . . . Scanalyzers 4 | . . . 4 Garrison Access . | . . . . Terminal Hacks 13 | . 11 . 2 Record 2 | . 2 . . Prototype ID Bank 1 | . . . 1 Branch Access Points 1 | . 1 . . Terminal Index 1 | . 1 . . Scanalyzer Index 1 | . 1 . . Dispatch Records 1 | . 1 . . Maintenance Status 1 | . 1 . . Patrol Status 1 | . 1 . . Recall Investigation 1 | . 1 . . Hauler Manifests 1 | . 1 . . Zone Layout 2 | . 1 . 1 Fabricator Hacks . | . . . . Repair Station Hacks . | . . . . Recycling Unit Hacks . | . . . . Scanalyzer 4 | . . . 4 Insert Component 2 | . . . 2 Analyze 2 | . . . 2 Garrison Access Hacks . | . . . . Unauthorized Hacks . | . . . . Terminals . | . . . . Fabricators . | . . . . Repair Stations . | . . . . Recycling Units . | . . . . Scanalyzers . | . . . . Garrison Access . | . . . . Data Cores Recovered . | . . . . Used . | . . . . Hacking Detections 5 | . 3 . 2 Full Trace Events . | . . . . Feedback Events . | . . . . Feedback Blocked . | . . . . Robot Schematics Acquired . | . . . . Robots Built . | . . . . Matter . | . . . . Time . | . . . . Total Robot Build Rating . | . . . . Part Schematics Acquired 2 | . . . 2 Parts Built . | . . . . Matter . | . . . . Time . | . . . . Total Part Build Rating . | . . . . Parts Repaired . | . . . . Time . | . . . . Parts Recycled . | . . . . Recycled Matter . | . . . . Retrieved Matter . | . . . . Retrieved Components . | . . . . Parts Scanalyzed 2 | . . . 2 Part Schematics Acquired 2 | . . . 2 Parts Damaged . | . . . . Bothacking | -11 -10 -10 -9 ------------ Run | Scr Mat Min Mat Used RIF Installer . | . . . . Robots Hacked . | . . . . Non-combat . | . . . . Combat . | . . . . Robot Hacks Applied . | . . . . Relay Couplers Released . | . . . . Robots Rewired . | . . . . Allies Hacked . | . . . . Hacks Repelled . | . . . . Allies | -11 -10 -10 -9 -------- Run | Scr Mat Min Mat Total Allies . | . . . . Largest Group . | . . . . Highest-Rated Group . | . . . . Highest-Rated Ally . | . . . . Total Orders . | . . . . Ally Attacks . | . . . . Total Damage . | . . . . Kills . | . . . . Allies Corrupted . | . . . . Allies Melted . | . . . . Intel | -11 -10 -10 -9 ------- Run | Scr Mat Min Mat Robot Analysis Total . | . . . . Derelict Logs Recovered . | . . . . Drone Launches . | . . . . Drone Recoveries . | . . . . Exploration | -11 -10 -10 -9 ------------- Run | Scr Mat Min Mat Turns Passed 550 | 41 204 17 288 Spaces Moved 533 | 34 208 22 269 Core 7 | 7 . . . Treads . | . . . . Legs . | . . . . Wheels 526 | 27 208 22 269 Hover . | . . . . Flight . | . . . . Fastest Speed 50 | 50 80 80 80 Average Speed 85 | 84 88 80 84 Slowest Speed 100 | 100 90 80 100 Overloaded Moves . | . . . . Propulsion Burnouts . | . . . . Robots Hopped . | . . . . Cave-ins Triggered . | . . . . Exploration Rate (%) 24 | 4 46 11 37 Regions Visited 3 Branch Regions 1 Pre-discovered Areas . | . . . . Known Exits Taken 1 | . 1 . . Unknown Exits Taken 2 | 1 . 1 . Scrap Searched . | . . . . Spaces Dug 22 | . . . 22 Terrain Destroyed 93 | . . . 93 Melee . | . . . . Projectile . | . . . . AOE 93 | . . . 93 Terrain Rammed . | . . . . Walls Destroyed . | . . . . Machines Disabled . | . . . . Actions | -11 -10 -10 -9 --------- Run | Scr Mat Min Mat Total 601 | 46 225 21 309 Wait 4 | . 4 . . Move 530 | 33 207 21 269 Hop . | . . . . Pick Up 24 | 7 8 . 9 Fast Attach . | . . . . Attach 17 | 6 2 . 9 Detach . | . . . . Swap 4 | . . . 4 Drop 6 | . 2 . 4 Fire 11 | . 2 . 9 Melee 5 | . . . 5 Ram . | . . . . Kick . | . . . . Crush . | . . . . Escape Stasis . | . . . . Rewire . | . . . . Trap . | . . . . Miscellaneous . | . . . . Route ------- -11/Scrapyard -10/Materials (discovered 2 exits: *Mat / *Min) -10/Mines -9/Materials History --------- Turn | Location | Event 15 | -11/Scrapyard | Discovered new exit (range 16) 42 | -11/Scrapyard | Entered Materials 187 | -10/Materials | Identified exit to Mines 192 | -10/Materials | Discovered new exit (range 11) 246 | -10/Materials | Entered Mines 258 | -10/Mines | Discovered new exit (range 5) 263 | -10/Mines | Entered Materials 263 | -9/Materials | Evolved 2 slots: Propulsion x1, Utility x1 315 | -9/Materials | Build established: Mutant 477 | -9/Materials | Core integrity fell below 50% 507 | -9/Materials | Core integrity fell below 20% 544 | -9/Materials | Lost 7 parts (1p3n1u2w) 551 | -9/Materials | Destroyed by Y-45 Defender with Beam Rifle Last Messages --------------- 00476_ Fusion Modulator explodes. 00476_ Destroyed Lgt. Ion Engine. 00476_ Fusion Modulator explodes. 00476_ S-10 Pest destroyed. 00478_ Acquired Lgt. Ion Engine. 00478_ Wheel destroyed. 00481_ Ion Engine destroyed. 00485_ Acquired 70 matter. 00490_ Acquired Flight Unit. 00494_ Acquired Arm. Wheel. 00506_ G-34 Mercenary destroyed. 00509_ Rocket Launcher destroyed. 00510_ The unstable cave ceiling collapses. 00511_ Wheel destroyed. 00538_ Connecting with Terminal... >>Layout(Zone) Retrieving Zone 8N layout... Downloaded map data. 00540_ Terminal disabled. 00545_ Rocket Launcher destroyed. Map ----- +----------------------------------------------------+ | ???????????????????????????????????? | | ???????????????????????????????????? | | ???????????????????????????????????? | | ???????????????????????????????????? | | ???????????????????????????????????? | | ???????????????????????????????????? | | ???????????????????????????????????? | | ???????????????????????????????????? | | ???????????????????????????????????? | | ???????????????????????????????????? | | ???????????????????????????????????? | | ???????????????????????????????????? | | ???????????????????????????????????? | | ???????????????????????????????????? | | ????????????????# """"" #????????? | | ????????????????# """ #????????? | | ????????????????# #????????? | | ????????????????####?######????????? | | ???????????????? #???????????? | | ????????????????"""""" #???????????? | | ?????????????? """"""" #???????????? | | ?????????????# """"""" #???????????? | | ?????????????# """"""" ######??????? | | ?????????????# """"""" ##?????? | | ##+###???????# #?????? | | #####???# @ #?????? | | #??????#####+# ####### | | #?????????# # | | ########### ## "" # | | # # ## # | | "!! ; ## # | | "!! % " ## ## | | " ## # #? | | " " ## ##Yg #? | | " # ## ## ##? | | " ## ## ##? | | %! [ ####Y## #? | | # ! #? | | ##### [% #? | | ??### ###+## #? | | #?# % # ##### ## ##? | | #?# !# ###???# ## #?? | | #?########?????# ## #?? | | #??????????????# ## #?? | | [#??????????????## """ """ ## #?? | | ####???????????????# """ """ ## #?? | | ???????????????????# """ """ #? #?? | | ???????????????????# #? #?? | | ???????????????????###########? #?? | | ??????????????????????????????? #?? | +----------------------------------------------------+ Best States ------------- Heat Dissipation 28 Energy Generation 10 Energy Capacity 250 Matter Stores 274 Matter Capacity 300 Sight Range 16 Robot Scan Range 10 Terrain Scan Density 10 Evasion (%) 44 Item Schematics ----------------- Rocket Launcher | -9/Materials | Scanalyzed Mining Claw | -9/Materials | Scanalyzed Robot Schematics ------------------ None Fabricated ------------ Nothing Alien Tech Used ----------------- None Achievements -------------- None Challenges ------------ None Game ------ Seed AluminumMediumStick Manual? 0 Play Time 00:18:11 Cumulative 19.9 hours Start 2020.09.17 @ 21:08:14 End 2020.09.17 @ 21:26:06 Sessions 1 Manual Loads 0 Difficulty Rogue Special Mode None Game No. 12 Rogue 12 Adventurer 0 Explorer 0 Win Type - Total 0 Types 0/0/0/0/0/0/0/0/0 Lore% 10 Gallery% 19 Achievement% 14 Wizard Run 0 Options --------- ASCII 0 Keyboard 0 Movement Numpad Keybinds 0 Fullscreen 1 Font 18/SmallcapsGlow Map View 76x50 Tactical HUD 1 Map Filters NONE Filters NONE Steam 1 RUN: 75625f24-25fc-446f-80a0-d0bb9fb73b3d